lending/lending_fUSD_20250516
["ID","MTS","AMOUNT","RATE_DAILY","PERIOD"]
[361279751,1747416647891,-401.87619674,0.00016438,2]
[361279752,1747416647901,-400.0,0.00016438,2]
[361279753,1747416647910,-1275.61,0.00016438,2]
[361279754,1747416647920,-400.0,0.00016438,2]
[361279755,1747416647929,-857.72,0.00016438,2]
[361279756,1747416647938,-400.0,0.00016438,2]
[361279757,1747416647948,-854.25,0.00016438,2]
[361279758,1747416647958,-400.0,0.00016438,2]
[361279759,1747416647967,-713.86,0.00016438,2]
[361279760,1747416647977,-400.0,0.00016438,2]
[361279761,1747416647986,-400.0,0.00016438,2]
[361279762,1747416647995,-1675.86,0.00016438,2]
[361279763,1747416648004,-400.0,0.00016438,2]
[361279764,1747416648014,-400.0,0.00016438,2]
[361279765,1747416648024,-499.53,0.00016438,2]
[361279766,1747416648033,-370.68989206,0.00016438,2]
[361279767,1747416648043,-400.0,0.00016438,2]
[361279768,1747416648052,-1434.4,0.00016438,2]
[361279769,1747416648065,-400.0,0.00016438,2]
[361279770,1747416648075,-400.0,0.00016438,2]
[361279771,1747416648084,-402.78284114,0.00016438,2]
[361279772,1747416648094,-1584.31,0.00016438,2]
[361279773,1747416648104,-159.82197365,0.00016438,2]
[361279774,1747416648114,-400.0,0.00016438,2]
[361279775,1747416648124,-400.0,0.00016438,2]
[361279776,1747416648133,-400.0,0.00016438,2]
[361279777,1747416648144,-400.0,0.00016438,2]
[361279778,1747416648153,-509.62419923,0.00016438,2]
[361279779,1747416648163,-947.38,0.00016438,2]
[361279780,1747416648173,-577.4,0.00016438,2]
[361279781,1747416648181,-400.0,0.00016438,2]
[361279782,1747416648190,-400.0,0.00016438,2]
[361279783,1747416648199,-1237.61,0.00016438,2]
[361279784,1747416648208,-405.72320909,0.00016438,2]
[361279785,1747416648218,-400.0,0.00016438,2]
[361279786,1747416648227,-471.94,0.00016438,2]
[361279787,1747416648236,-990.68,0.00016438,2]
[361279788,1747416648245,-605.58,0.00016438,2]
[361279789,1747416648255,-3482.27,0.00016438,2]
[361279790,1747416648265,-400.0,0.00016438,2]
[361279791,1747416648275,-781.69,0.00016438,2]
[361279792,1747416648285,-836.83,0.00016438,2]
[361279793,1747416648294,-404.68,0.00016438,2]
[361279794,1747416648305,-739.09,0.00016438,2]
[361279795,1747416648315,-425.21,0.00016438,2]
[361279796,1747416648325,-1047.02,0.00016438,2]
[361279797,1747416648335,-989.34,0.00016438,2]
[361279798,1747416648345,-400.0,0.00016438,2]
[361279799,1747416648355,-400.0,0.00016438,2]
[361279800,1747416648364,-935.68,0.00016438,2]
[361279801,1747416648374,-623.09,0.00016438,2]
[361279802,1747416648384,-546.33,0.00016438,2]
[361279803,1747416648394,-400.0,0.00016438,2]
[361279804,1747416648404,-400.0,0.00016438,2]
[361279805,1747416648414,-400.0,0.00016438,2]
[361279806,1747416648423,-1543.3,0.00016438,2]
[361279807,1747416648433,-1159.66,0.00016438,2]
[361279808,1747416648442,-506.84,0.00016438,2]
[361279809,1747416648452,-425.22822967,0.00016438,2]
[361279810,1747416648461,-239.6055187,0.00016438,2]
[361279811,1747416648471,-3068.12,0.00016438,2]
[361279812,1747416648480,-400.0,0.00016438,2]
[361279813,1747416648490,-400.0,0.00016438,2]
[361279814,1747416648499,-400.0,0.00016438,2]
[361279815,1747416648508,-502.17,0.00016438,2]
[361279816,1747416648517,-435.86,0.00016438,2]
[361279817,1747416648526,-514.04,0.00016438,2]
[361279818,1747416648536,-1803.15,0.00016438,2]
[361279819,1747416648546,-728.63,0.00016438,2]
[361279820,1747416648556,-151.0,0.00016438,2]
[361279821,1747416648571,-670.81,0.00016438,2]
[361279822,1747416648580,-4598.17,0.00016438,2]
[361279823,1747416648590,-4051.93,0.00016438,2]
[361279824,1747416648603,-400.0,0.00016438,2]
[361279825,1747416648614,-1031.84204045,0.00016438,2]
[361279826,1747416648626,-436.71,0.00016438,2]
[361279827,1747416648635,-151.0,0.00016438,2]
[361279828,1747416648647,-578.02,0.00016438,2]
[361279829,1747416648657,-451.52,0.00016438,2]
[361279830,1747416648668,-1309.02,0.00016438,2]
[361279831,1747416648679,-984.01,0.00016438,2]
[361279832,1747416648690,-1516.92,0.00016438,2]
[361279833,1747416648701,-1342.31,0.00016438,2]
[361279834,1747416648711,-400.0,0.00016438,2]
[361279835,1747416648722,-400.0,0.00016438,2]
[361279836,1747416648731,-2758.77,0.00016438,2]
[361279837,1747416648741,-696.22,0.00016438,2]
[361279838,1747416648750,-400.0,0.00016438,2]
[361279839,1747416648760,-400.0,0.00016438,2]
[361279840,1747416648770,-400.0,0.00016438,2]
[361279841,1747416648779,-592.21,0.00016438,2]
[361279842,1747416648789,-400.0,0.00016438,2]
[361279843,1747416648799,-3368.69,0.00016438,2]
[361279844,1747416648809,-811.42,0.00016438,2]
[361279845,1747416648819,-400.0,0.00016438,2]
[361279846,1747416648828,-2250.71,0.00016438,2]
[361279847,1747416648837,-400.0,0.00016438,2]
[361279848,1747416648847,-400.0,0.00016438,2]
[361279849,1747416648856,-400.0,0.00016438,2]
[361279850,1747416648866,-11721.45,0.00016438,2]
[361279851,1747416648876,-400.0,0.00016438,2]
[361279852,1747416648886,-400.0,0.00016438,2]
[361279853,1747416648895,-577.99,0.00016438,2]
[361279854,1747416648905,-400.0,0.00016438,2]
[361279855,1747416648915,-1448.99,0.00016438,2]
[361279856,1747416648925,-885.12,0.00016438,2]
[361279857,1747416648934,-400.0,0.00016438,2]
[361279858,1747416648944,-400.0,0.00016438,2]
[361279859,1747416648953,-707.36,0.00016438,2]
[361279860,1747416648974,-400.0,0.00016438,2]
[361279861,1747416648984,-500.0,0.00016438,2]
[361279862,1747416648994,-190.28414693,0.00016438,2]
[361279863,1747416649005,-500.0,0.00016438,2]
[361279864,1747416649015,-603.74,0.00016438,2]
[361279865,1747416649026,-400.0,0.00016438,2]
[361279866,1747416649036,-449.09353745,0.00016438,2]
[361279867,1747416649047,-660.31,0.00016438,2]
[361279868,1747416649057,-400.0,0.00016438,2]
[361279869,1747416649067,-678.85,0.00016438,2]
[361279870,1747416649078,-20967.53,0.00016438,2]
[361279871,1747416649088,-516.64,0.00016438,2]
[361279872,1747416649098,-400.0,0.00016438,2]
[361279873,1747416649109,-400.0,0.00016438,2]
[361279874,1747416649119,-1835.9,0.00016438,2]
[361279875,1747416649130,-1326.64,0.00016438,2]
[361279876,1747416649140,-400.0,0.00016438,2]
[361279877,1747416649151,-400.0,0.00016438,2]
[361279878,1747416649162,-1886.85,0.00016438,2]
[361279879,1747416649172,-151.0,0.00016438,2]
[361279880,1747416649182,-698.58,0.00016438,2]
[361279881,1747416649192,-400.0,0.00016438,2]
[361279882,1747416649202,-400.0,0.00016438,2]
[361279883,1747416649211,-400.0,0.00016438,2]
[361279884,1747416649221,-400.0,0.00016438,2]
[361279885,1747416649231,-400.0,0.00016438,2]
[361279886,1747416649241,-3969.65196492,0.00016438,2]
[361279887,1747416649287,-1444.03803508,0.00016438,2]
[361279888,1747416649297,-400.0,0.00016438,2]
[361279889,1747416649307,-2231.82,0.00016438,2]
[361279890,1747416649318,-314.5268071,0.00016438,2]
[361279891,1747416649327,-1659.4,0.00016438,2]
[361279892,1747416649337,-1370.26,0.00016438,2]
[361279893,1747416649347,-683.5,0.00016438,2]
[361279894,1747416649357,-425.17,0.00016438,2]
[361279895,1747416649367,-1064.0,0.00016438,2]
[361279896,1747416649377,-400.0,0.00016438,2]
[361279897,1747416649387,-151.0,0.00016438,2]
[361279898,1747416649396,-400.0,0.00016438,2]
[361279899,1747416649406,-400.0,0.00016438,2]
[361279900,1747416649416,-625.15,0.00016438,2]
[361279901,1747416649425,-400.0,0.00016438,2]
[361279902,1747416649435,-3390.45503122,0.00016438,2]
[361279903,1747416649453,-720.47905909,0.00016438,2]
[361279904,1747416649465,-419.77238971,0.00016438,2]
[361279905,1747416649476,-1656.58520388,0.00016438,2]
[361279906,1747416649488,-241.1183161,0.00016438,2]
[361279907,1747416649498,-566.62,0.00016438,2]
[361279908,1747416649508,-2729.66,0.00016438,2]
[361279909,1747416649518,-193.83795951,0.00016438,2]
[361279910,1747416650484,-2205.53204049,0.00016438,2]
[361279911,1747416650494,-151.0,0.00016438,2]
[361279912,1747416650504,-401.1,0.00016438,2]
[361279913,1747416650513,-3158.02,0.00016438,2]
[361279914,1747416650523,-585.44,0.00016438,2]
[361279915,1747416650532,-400.0,0.00016438,2]
[361279916,1747416650541,-400.0,0.00016438,2]
[361279917,1747416650551,-717.56,0.00016438,2]
[361279918,1747416650564,-1928.19,0.00016438,2]
[361279919,1747416650573,-1387.3,0.00016438,2]
[361279920,1747416650583,-4318.74,0.00016438,2]
[361279921,1747416650592,-423.14,0.00016438,2]
[361279922,1747416650602,-3078.19,0.00016438,2]
[361279923,1747416650612,-619.14,0.00016438,2]
[361279924,1747416650622,-400.0,0.00016438,2]
[361279925,1747416650632,-709.94,0.00016438,2]
[361279926,1747416650643,-511.51,0.00016438,2]
[361279927,1747416650653,-982.0,0.00016438,2]
[361279928,1747416650662,-400.0,0.00016438,2]
[361279929,1747416650672,-659.25,0.00016438,2]
[361279930,1747416650681,-400.0,0.00016438,2]
[361279931,1747416650691,-268.55834491,0.00016438,2]
[361279932,1747416651532,-131.44165509,0.00016438,2]
[361279933,1747416651542,-500.0,0.00016438,2]
[361279934,1747416651552,-1063.0,0.00016438,2]
[361279935,1747416651562,-500.0,0.00016438,2]
[361279936,1747416651573,-300.0,0.00016438,2]
[361279937,1747416651583,-1042.59,0.00016438,2]
[361279938,1747416651592,-2920.23,0.00016438,2]
[361279939,1747416651602,-684.16,0.00016438,2]
[361279940,1747416651612,-689.01,0.00016438,2]
[361279941,1747416651621,-400.0,0.00016438,2]
[361279942,1747416651630,-400.0,0.00016438,2]
[361279943,1747416651640,-151.0,0.00016438,2]
[361279944,1747416651651,-151.0,0.00016438,2]
[361279945,1747416651660,-790.11,0.00016438,2]
[361279946,1747416651670,-530.05,0.00016438,2]
[361279947,1747416651680,-400.0,0.00016438,2]
[361279948,1747416651689,-400.0,0.00016438,2]
[361279949,1747416651699,-1287.61,0.00016438,2]
[361279950,1747416651709,-567.88,0.00016438,2]
[361279951,1747416651718,-400.0,0.00016438,2]
[361279952,1747416651727,-400.0,0.00016438,2]
[361279953,1747416651737,-1012.79,0.00016438,2]
[361279954,1747416651746,-158.155376,0.00016438,2]
[361279955,1747416651756,-1998.51,0.00016438,2]
[361279956,1747416651765,-849.13,0.00016438,2]
[361279957,1747416651774,-1410.68,0.00016438,2]
[361279958,1747416651784,-434.97,0.00016438,2]
[361279959,1747416651793,-1589.93,0.00016438,2]
[361279960,1747416651802,-604.28,0.00016438,2]
[361279961,1747416651811,-400.0,0.00016438,2]
[361279962,1747416651820,-400.0,0.00016438,2]
[361279963,1747416651829,-2857.64,0.00016438,2]
[361279964,1747416651839,-400.0,0.00016438,2]
[361279965,1747416651848,-400.0,0.00016438,2]
[361279966,1747416651856,-160.34475426,0.00016438,2]
[361279967,1747416651866,-1136.35,0.00016438,2]
[361279968,1747416651875,-3898.72,0.00016438,2]
[361279969,1747416651884,-307.91007631,0.00016438,2]
[361279970,1747416651894,-8186.81,0.00016438,2]
[361279971,1747416651904,-868.51,0.00016438,2]
[361279972,1747416651913,-400.0,0.00016438,2]
[361279973,1747416651923,-767.33,0.00016438,2]
[361279974,1747416651933,-2357.95,0.00016438,2]
[361279975,1747416651943,-769.21,0.00016438,2]
[361279976,1747416651952,-400.0,0.00016438,2]
[361279977,1747416651962,-983.69,0.00016438,2]
[361279978,1747416651971,-723.23,0.00016438,2]
[361279979,1747416651980,-400.0,0.00016438,2]
[361279980,1747416651989,-2369.7,0.00016438,2]
[361279981,1747416651999,-7912.21,0.00016438,2]
[361279982,1747416652008,-815.16,0.00016438,2]
[361279983,1747416652017,-151.0,0.00016438,2]
[361279984,1747416652026,-400.0,0.00016438,2]
[361279985,1747416652035,-151.0,0.00016438,2]
[361279986,1747416652044,-990.88,0.00016438,2]
[361279987,1747416652053,-3286.65,0.00016438,2]
[361279988,1747416652063,-400.0,0.00016438,2]
[361279989,1747416652072,-447.34,0.00016438,2]
[361279990,1747416652082,-400.0,0.00016438,2]
[361279991,1747416652091,-1629.4,0.00016438,2]
[361279992,1747416652100,-2768.13,0.00016438,2]
[361279993,1747416652109,-1875.42,0.00016438,2]
[361279994,1747416652118,-400.0,0.00016438,2]
[361279995,1747416652128,-1796.03,0.00016438,2]
[361279996,1747416652138,-1003.68,0.00016438,2]
[361279997,1747416652147,-690.85,0.00016438,2]
[361279998,1747416652157,-1237.03,0.00016438,2]
[361279999,1747416652167,-151.0,0.00016438,2]
[361280000,1747416652176,-151.0,0.00016438,2]
[361280001,1747416652186,-1915.71,0.00016438,2]
[361280002,1747416652195,-1039.82,0.00016438,2]
[361280003,1747416652205,-400.0,0.00016438,2]
[361280004,1747416652214,-1157.25,0.00016438,2]
[361280005,1747416652224,-1744.6,0.00016438,2]
[361280006,1747416652233,-1662.62,0.00016438,2]
[361280007,1747416652243,-400.0,0.00016438,2]
[361280008,1747416652252,-2852.67,0.00016438,2]
[361280009,1747416652261,-185.43254231,0.00016438,2]
[361280010,1747416652271,-487.81,0.00016438,2]
[361280011,1747416652280,-400.0,0.00016438,2]
[361280012,1747416652290,-881.43,0.00016438,2]
[361280013,1747416652299,-400.0,0.00016438,2]
[361280014,1747416652309,-400.0,0.00016438,2]
[361280015,1747416652319,-11987.65,0.00016438,2]
[361280016,1747416652329,-400.0,0.00016438,2]
[361280017,1747416652339,-4457.16,0.00016438,2]
[361280018,1747416652348,-1463.42,0.00016438,2]
[361280019,1747416652358,-400.0,0.00016438,2]
[361280020,1747416652368,-1192.17,0.00016438,2]
[361280021,1747416652378,-1272.66,0.00016438,2]
[361280022,1747416652387,-677.05,0.00016438,2]
[361280023,1747416652398,-400.0,0.00016438,2]
[361280024,1747416652407,-2431.71,0.00016438,2]
[361280025,1747416652417,-400.0,0.00016438,2]
[361280026,1747416652426,-400.0,0.00016438,2]
[361280027,1747416652436,-400.0,0.00016438,2]
[361280028,1747416652524,-400.0,0.00016438,2]
[361280029,1747416652535,-400.0,0.00016438,2]
[361280030,1747416652545,-497.37,0.00016438,2]
[361280031,1747416652556,-1755.85,0.00016438,2]
[361280032,1747416652569,-151.0,0.00016438,2]
[361280033,1747416652578,-2922.21,0.00016438,2]
[361280034,1747416652588,-400.0,0.00016438,2]
[361280035,1747416652602,-806.84,0.00016438,2]
[361280036,1747416652612,-649.12,0.00016438,2]
[361280037,1747416652622,-2970.04,0.00016438,2]
[361280038,1747416652631,-968.19,0.00016438,2]
[361280039,1747416652640,-400.0,0.00016438,2]
[361280040,1747416652651,-1036.35,0.00016438,2]
[361280041,1747416652660,-400.0,0.00016438,2]
[361280042,1747416652669,-400.0,0.00016438,2]
[361280043,1747416652678,-400.0,0.00016438,2]
[361280044,1747416652687,-400.0,0.00016438,2]
[361280045,1747416652697,-3048.49,0.00016438,2]
[361280046,1747416652705,-1250.33,0.00016438,2]
[361280047,1747416652714,-3546.78,0.00016438,2]
[361280048,1747416652726,-573.78,0.00016438,2]
[361280049,1747416652735,-17341.66,0.00016438,2]
[361280050,1747416652744,-820.52,0.00016438,2]
[361280051,1747416652753,-335.24304165,0.00016438,2]
[361280052,1747416652762,-400.0,0.00016438,2]
[361280053,1747416652771,-3479.85,0.00016438,2]
[361280054,1747416652781,-1297.45,0.00016438,2]
[361280055,1747416652790,-3198.72,0.00016438,2]
[361280056,1747416652800,-400.0,0.00016438,2]
[361280057,1747416652809,-6867.12,0.00016438,2]
[361280058,1747416652818,-2955.2,0.00016438,2]
[361280059,1747416652827,-902.29,0.00016438,2]
[361280060,1747416652836,-967.84,0.00016438,2]
[361280061,1747416652846,-2268.18,0.00016438,2]
[361280062,1747416652855,-970.55,0.00016438,2]
[361280063,1747416652864,-400.0,0.00016438,2]
[361280064,1747416652873,-400.0,0.00016438,2]
[361280065,1747416652882,-2827.92,0.00016438,2]
[361280066,1747416652891,-400.0,0.00016438,2]
[361280067,1747416652901,-184.23522243,0.00016438,2]
[361280068,1747416652910,-400.0,0.00016438,2]
[361280069,1747416652919,-500.0,0.00016438,10]
[361280070,1747416652928,-780.36,0.00016438,2]
[361280071,1747416652937,-400.0,0.00016438,2]
[361280072,1747416652947,-805.78,0.00016438,2]
[361280073,1747416652958,-542.01,0.00016438,2]
[361280074,1747416652967,-151.0,0.00016438,2]
[361280075,1747416652976,-400.0,0.00016438,2]
[361280076,1747416652985,-400.0,0.00016438,2]
[361280077,1747416652994,-151.0,0.00016438,2]
[361280078,1747416653004,-6032.27,0.00016438,2]
[361280079,1747416653013,-2693.27,0.00016438,2]
[361280080,1747416653022,-2095.26,0.00016438,2]
[361280081,1747416653031,-400.0,0.00016438,2]
[361280082,1747416653040,-14492.06,0.00016438,2]
[361280083,1747416653049,-400.0,0.00016438,2]
[361280084,1747416653058,-653.5,0.00016438,2]
[361280085,1747416653068,-400.0,0.00016438,2]
[361280086,1747416653081,-400.0,0.00016438,2]
[361280087,1747416653091,-426.26,0.00016438,2]
[361280088,1747416653100,-400.0,0.00016438,2]
[361280089,1747416653110,-1265.58,0.00016438,2]
[361280090,1747416653120,-258.09713353,0.00016438,2]
[361280091,1747416653129,-1068.53,0.00016438,2]
[361280092,1747416653141,-1298.47,0.00016438,2]
[361280093,1747416653150,-351.7991323,0.00016438,2]
[361280094,1747416653159,-400.0,0.00016438,2]
[361280095,1747416653168,-400.0,0.00016438,2]
[361280096,1747416653177,-400.0,0.00016438,2]
[361280097,1747416653186,-400.0,0.00016438,2]
[361280098,1747416653196,-1340.18,0.00016438,2]
[361280099,1747416653205,-151.0,0.00016438,2]
[361280100,1747416653214,-151.0,0.00016438,2]
[361280101,1747416653224,-959.06,0.00016438,2]
[361280102,1747416653235,-882.59,0.00016438,2]
[361280103,1747416653245,-151.0,0.00016438,2]
[361280104,1747416653256,-151.0,0.00016438,2]
[361280105,1747416653266,-10340.28,0.00016438,2]
[361280106,1747416653275,-151.0,0.00016438,2]
[361280107,1747416653285,-9125.4,0.00016438,2]
[361280108,1747416653294,-151.0,0.00016438,2]
[361280109,1747416653304,-400.0,0.00016438,2]
[361280110,1747416653314,-154.113534,0.00016438,2]
[361280111,1747416653324,-400.0,0.00016438,2]
[361280112,1747416653334,-400.0,0.00016438,2]
[361280113,1747416653343,-12444.31,0.00016438,2]
[361280114,1747416653353,-151.0,0.00016438,2]
[361280115,1747416653362,-151.0,0.00016438,2]
[361280116,1747416653371,-346.03341167,0.00016438,2]
[361280117,1747416653381,-560.5,0.00016438,2]
[361280118,1747416653392,-699.58,0.00016438,2]
[361280119,1747416653401,-2669.79,0.00016438,2]
[361280120,1747416653410,-1963.61,0.00016438,2]
[361280121,1747416653420,-505.8,0.00016438,2]
[361280122,1747416653430,-775.5,0.00016438,2]
[361280123,1747416653440,-986.9,0.00016438,2]
[361280124,1747416653449,-448.84,0.00016438,2]
[361280125,1747416653459,-1126.5,0.00016438,2]
[361280126,1747416653468,-512.11,0.00016438,2]
[361280127,1747416653478,-400.0,0.00016438,2]
[361280128,1747416653487,-400.0,0.00016438,2]
[361280129,1747416653497,-209.461119,0.00016438,2]
[361280130,1747416653506,-209.461119,0.00016438,2]
[361280131,1747416653515,-731.83,0.00016438,2]
[361280132,1747416653525,-692.06,0.00016438,2]
[361280133,1747416653534,-497.62,0.00016438,2]
[361280134,1747416653544,-4819.0,0.00016438,2]
[361280135,1747416653553,-209.461119,0.00016438,2]
[361280136,1747416653564,-400.0,0.00016438,2]
[361280137,1747416653574,-209.461119,0.00016438,2]
[361280138,1747416653583,-553.95,0.00016438,2]
[361280139,1747416653593,-400.0,0.00016438,2]
[361280140,1747416653603,-453.1,0.00016438,2]
[361280141,1747416653612,-1257.84,0.00016438,2]
[361280142,1747416653622,-2777.74,0.00016438,2]
[361280143,1747416653631,-400.0,0.00016438,2]
[361280144,1747416653643,-2021.58,0.00016438,2]
[361280145,1747416653653,-1428.25,0.00016438,2]
[361280146,1747416653662,-876.6,0.00016438,2]
[361280147,1747416653671,-400.0,0.00016438,2]
[361280148,1747416653680,-1495.01,0.00016438,2]
[361280149,1747416653690,-200.0,0.00016438,2]
[361280150,1747416653699,-928.24,0.00016438,2]
[361280151,1747416653708,-151.0,0.00016438,2]
[361280152,1747416653718,-1429.41,0.00016438,2]
[361280153,1747416653727,-400.0,0.00016438,2]
[361280154,1747416653737,-151.0,0.00016438,2]
[361280155,1747416653746,-973.3,0.00016438,2]
[361280156,1747416653755,-650.5,0.00016438,2]
[361280157,1747416653765,-570.89,0.00016438,2]
[361280158,1747416653775,-400.0,0.00016438,2]
[361280159,1747416653784,-658.24,0.00016438,2]
[361280160,1747416653793,-151.0,0.00016438,2]
[361280161,1747416653803,-1378.73,0.00016438,2]
[361280162,1747416653813,-400.0,0.00016438,2]
[361280163,1747416653822,-151.0,0.00016438,2]
[361280164,1747416653831,-53555.95952852,0.00016438,2]
[361280165,1747416653850,-6592.6118592,0.00016438,2]
[361280166,1747416653861,-2846.91516948,0.00016438,2]
[361280167,1747416654482,-3263.96813172,0.00014198,2]
[361280168,1747416654595,-3190.10899753,0.00014198,2]
[361280169,1747416654607,-2079.64408631,0.00016438,2]
[361280170,1747416654623,-10318.596,0.00016438,2]
[361280171,1747416654634,-8824.14634508,0.00016438,2]
[361280172,1747416654646,-76523.40590916,0.00016438,2]
[361280173,1747416654666,-1400.17110225,0.00016438,2]
[361280174,1747416654675,-1524.2,0.00016438,2]
[361280175,1747416654685,-400.0,0.00016438,2]
[361280176,1747416654694,-1168.43,0.00016438,2]
[361280177,1747416654702,-1501.53,0.00016438,2]
[361280178,1747416654712,-151.0,0.00016438,2]
[361280179,1747416654722,-151.0,0.00016438,2]
[361280180,1747416654734,-429.88,0.00016438,2]
[361280181,1747416654744,-2869.29790872,0.00016438,2]
[361280182,1747417065805,450.0,0.0001,2]
[361280183,1747417663002,181.02,0.00021945,30]
[361280189,1747417827770,5025.75,0.00010202,2]
[361280195,1747417832309,-510.05,0.00013493,2]
[361280196,1747417832318,-460.6394661,0.00013595,2]
[361280197,1747417832329,-200.0,0.00013596,2]
[361280198,1747417832339,-81.61769197,0.00013699,2]
[361280199,1747417832467,-633.09230803,0.00013699,2]
[361280200,1747417832477,-200.0,0.00014494,2]
[361280201,1747417832486,-200.0,0.00014842,2]
[361280202,1747417832495,-200.0,0.00014842,2]
[361280203,1747417832505,-200.0,0.00014842,2]
[361280204,1747417832514,-290.45928066,0.00015,7]
[361280205,1747417832524,-430.3,0.00015126,2]
[361280206,1747417832533,-547.06,0.00015157,2]
[361280207,1747417832543,-164.19,0.00015438,2]
[361280208,1747417832553,-1200.0,0.00015456,2]
[361280209,1747417832562,-1000.0,0.00015458,2]
[361280210,1747417832571,-341.86841221,0.00015458,2]
[361280211,1747417832583,-3658.13158779,0.00015458,2]
[361280212,1747417832592,-200.0,0.00015458,2]
[361280213,1747417832601,-184.81,0.00015458,2]
[361280214,1747417832611,-427.08,0.00015483,2]
[361280215,1747417832621,-1084.38,0.00015573,2]
[361280216,1747417832631,-207.4,0.00015615,2]
[361280217,1747417832640,-510.05,0.00015756,2]
[361280218,1747417832650,-1600.0,0.000158,5]
[361280219,1747417832659,-706.1,0.0001589,2]
[361280220,1747417832668,-2109.67839453,0.000159,5]
[361280221,1747417832690,-1190.32160547,0.000159,5]
[361280222,1747417832704,-343.6,0.00016164,2]
[361280223,1747417832714,-150.0,0.00016164,2]
[361280224,1747417832724,-349.47,0.00016164,2]
[361280225,1747417832735,-237.52058897,0.00016328,2]
[361280226,1747417832744,-599.60298507,0.00016328,2]
[361280227,1747417832754,-2660.56529125,0.00016332,2]
[361280228,1747417832763,-262.8791,0.00016332,2]
[361280229,1747417832773,-240.98,0.00016332,2]
[361280230,1747417832784,-550.0,0.00016337,2]
[361280231,1747417832794,-196.52801519,0.00016338,2]
[361280232,1747417832804,-158.75556799,0.00016338,2]
[361280233,1747417832814,-251.25610668,0.00016338,2]
[361280234,1747417832824,-5945.9720215,0.00016338,2]
[361280235,1747417832834,-610.24155981,0.00016338,2]
[361280356,1747417838423,-262.10500002,0.00016338,2]
[361280357,1747417838478,-6329.82174017,0.00016338,2]
[361280358,1747417838487,-807.65868038,0.00016338,2]
[361280359,1747417838499,-515.8,0.00016338,2]
[361280360,1747417838510,-607.48311962,0.00016338,2]
[361280361,1747417838519,-791.8530379,0.00016355,2]
[361280362,1747417838528,-509.9847,0.00016356,2]
[361280363,1747417838538,-2203.2,0.00016412,2]
[361280364,1747417838548,-1837.85381043,0.00016424,2]
[361280365,1747417838559,-822.71148076,0.00016424,2]
[361280366,1747417838569,-924.217,0.00016428,2]
[361280367,1747417838578,-184.63682384,0.00016428,2]
[361280368,1747417838587,-176.44925949,0.00016428,2]
[361280369,1747417838596,-1509.74451973,0.00016432,2]
[361280370,1747417838735,-85.13761337,0.00016432,2]
[361280371,1747417838744,-691.20661826,0.00016432,2]
[361280375,1747417838756,-9153.9,0.00016432,2]
[361280378,1747417840626,-12655.25999999,0.00016432,2]
[361280379,1747417840681,-1657.68,0.00016432,2]
[361280380,1747417840839,-25900.9361505,0.00016432,2]
[361280381,1747417840850,-57409.39036195,0.00016432,2]
[361280382,1747417840860,-10065.3042137,0.00016432,2]
[361280383,1747417840869,-5229.5600078,0.00016432,2]
[361280384,1747417840879,-46721.4678042,0.00016432,2]
[361280385,1747417840888,-4220.5435497,0.00016432,2]